[Event "EYCC Open-U18 2019"]
[Site "Bratislava"]
[Date "2019.08.10"]
[Round "9.1"]
[White "Nguyen, Thai Dai Van"]
[Black "Kaasen, Tor Fredrik"]
[Result "1-0"]
[ECO "D86"]
[WhiteElo "2535"]
[BlackElo "2376"]
[Annotator "ChessBase"]
[PlyCount "79"]
[EventDate "2019.08.02"]
[EventType "swiss"]
[EventCountry "SVK"]
[SourceTitle "playchess.com"]
[Source "ChessBase"]
[SourceQuality "1"]
[TimeControl "40/5400+30:1800+30"]

1. d4 {[%emt 0:00:00]} Nf6 {[%emt 0:00:00]} 2. c4 {[%emt 0:00:00]} g6 {[%emt 0:00:20]} 3. Nc3 {[%emt 0:00:00]} d5 {[%emt 0:00:05]} 4. cxd5 {[%emt 0:00:00]} Nxd5 {[%emt 0:00:08]} 5. e4 {[%emt 0:00:00]} Nxc3 {[%emt 0:00:11]} 6. bxc3 {[%emt 0:00:00]} Bg7 {[%emt 0:00:08]} 7. Bc4 {[%emt 0:00:01]} c5 {[%emt 0:01:57]} 8. Ne2 {[%emt 0:00:06]} Nc6 {[%emt 0:00:20]} 9. Be3 {[%emt 0:00:04]} O-O {[%emt 0:00:48]} 10. O-O {[%emt 0:00:05]} b6 {[%emt 0:05:19]} 11. Rc1 {[%emt 0:00:12]} Bb7 {[%emt 0:01:34]} 12. Qd2 {[%emt 0:00:03]} cxd4 {[%emt 0:01:16]} 13. cxd4 {[%emt 0:00:11]} Rc8 {[%emt 0:00:05]} 14. f3 {[%emt 0:08:31]} Qd7 {[%emt 0:04:34]} 15. Bb5 {[%emt 0:04:52]} Qd6 {[%emt 0:14:07]} 16. d5 {[%emt 0:09:36]} Na5 {[%emt 0:02:07]} 17. Nd4 {[%emt 0:01:27]} Rfd8 {[%emt 0:08:37]} 18. Be2 {[%emt 0:04:57]} a6 {[%emt 0:03:04]} 19. Rfd1 {[%emt 0:26:21]} Qa3 {[%emt 0:18:52]} 20. Bd3 {[%emt 0:01:59]} b5 {[%emt 0:05:28]} 21. Ne2 {[%emt 0:01:01]} Nc4 {[%emt 0:03:23]} 22. Bxc4 {[%emt 0:00:07]} bxc4 {[%emt 0:01:18]} 23. Bd4 {[%emt 0:08:57]} Bxd4+ {[%emt 0:02:48]} 24. Qxd4 {[%emt 0:00:19]} Qc5 {[%emt 0:07:22]} 25. Qxc5 {[%emt 0:01:01]} Rxc5 {[%emt 0:00:05]} 26. Rb1 {[%emt 0:00:32]} Rd7 {[%emt 0:04:36]} 27. Nc3 {[%emt 0:00:24]} Ra5 {[%emt 0:03:32]} 28. a4 {[%emt 0:00:15]} f6 {[%emt 0:02:31]} 29. Kf2 {[%emt 0:00:24]} Kf7 {[%emt 0:00:08]} 30. Rb6 {[%emt 0:00:23]} Rc5 {[%emt 0:01:08]} 31. Rdb1 {[%emt 0:00:32]} Bc8 {[%emt 0:00:55]} 32. Ke3 {[%emt 0:01:11]} Rdc7 {[%emt 0:01:45]} 33. f4 {[%emt 0:00:59]} Ke8 {[%emt 0:01:57]} 34. Kd4 {[%emt 0:00:39]} Kf7 {[%emt 0:01:30]} 35. e5 {[%emt 0:01:20]} fxe5+ {[%emt 0:02:28]} 36. fxe5 {[%emt 0:00:06]} Ke8 {[%emt 0:00:38]} 37. Rb8 {[%emt 0:02:00]} Kf7 {[%emt 0:01:49]} 38. Rf1+ {[%emt 0:01:00]} Kg7 {[%emt 0:00:21]} 39. e6 {[%emt 0:00:43]} g5 {[%emt 0:00:37]} 40. Ke4 1-0

[Event "EYCC Open-U18 2019"]
[Site "Bratislava"]
[Date "2019.08.10"]
[Round "9.2"]
[White "Engel, Luis"]
[Black "Salemgareev, Tagir"]
[Result "0-1"]
[ECO "B04"]
[WhiteElo "2509"]
[BlackElo "2412"]
[Annotator "ChessBase"]
[PlyCount "154"]
[EventDate "2019.08.02"]
[EventType "swiss"]
[EventCountry "SVK"]
[SourceTitle "playchess.com"]
[Source "ChessBase"]
[SourceQuality "1"]
[TimeControl "40/5400+30:1800+30"]

1. e4 {[%emt 0:00:00]} Nf6 {[%emt 0:02:16]} 2. e5 {[%emt 0:00:00]} Nd5 {[%emt 0:00:02]} 3. d4 {[%emt 0:00:00]} d6 {[%emt 0:00:03]} 4. Nf3 {[%emt 0:00:00]} dxe5 {[%emt 0:00:04]} 5. Nxe5 {[%emt 0:00:00]} c6 {[%emt 0:00:03]} 6. Be2 {[%emt 0:01:15]} Bf5 {[%emt 0:01:44]} 7. O-O {[%emt 0:00:10]} Nd7 {[%emt 0:00:22]} 8. Nf3 {[%emt 0:00:25]} e6 {[%emt 0:00:16]} 9. c4 {[%emt 0:02:53]} N5f6 {[%emt 0:00:18]} 10. Bf4 {[%emt 0:01:40]} Be7 {[%emt 0:05:36]} 11. h3 {[%emt 0:01:05]} O-O {[%emt 0:01:42]} 12. Re1 {[%emt 0:01:32]} Qb6 {[%emt 0:11:09]} 13. b3 {[%emt 0:04:16]} c5 {[%emt 0:07:46]} 14. Nc3 {[%emt 0:02:23]} cxd4 {[%emt 0:01:31]} 15. Nxd4 {[%emt 0:03:23]} Bb4 {[%emt 0:07:54]} 16. Na4 {[%emt 0:10:23]} Qd8 {[%emt 0:03:53]} 17. Bd2 {[%emt 0:03:14]} Bxd2 {[%emt 0:01:40]} 18. Qxd2 {[%emt 0:00:07]} Bg6 {[%emt 0:08:14]} 19. Rad1 {[%emt 0:03:37]} a6 {[%emt 0:02:27]} 20. Bg4 {[%emt 0:15:14]} Qc7 {[%emt 0:06:48]} 21. Bxe6 {[%emt 0:01:56]} fxe6 {[%emt 0:00:21]} 22. Nxe6 {[%emt 0:00:06]} Qc6 {[%emt 0:00:51]} 23. Nxf8 {[%emt 0:00:10]} Rxf8 {[%emt 0:01:05]} 24. Nc3 {[%emt 0:06:42]} Re8 {[%emt 0:13:09]} 25. Rxe8+ {[%emt 0:01:26]} Bxe8 {[%emt 0:00:06]} 26. Qe3 {[%emt 0:03:07]} Qc5 {[%emt 0:07:10]} 27. Qf3 {[%emt 0:04:10]} Qe5 {[%emt 0:03:19]} 28. Nd5 {[%emt 0:03:09]} Nxd5 {[%emt 0:01:53]} 29. Rxd5 {[%emt 0:00:32]} Qe7 {[%emt 0:00:37]} 30. Qf4 {[%emt 0:01:50]} Nf6 {[%emt 0:00:56]} 31. Re5 {[%emt 0:01:02]} Qd6 {[%emt 0:04:38]} 32. c5 {[%emt 0:02:44]} Qd8 {[%emt 0:00:50]} 33. Re6 {[%emt 0:04:55]} Bc6 {[%emt 0:01:11]} 34. f3 {[%emt 0:02:14]} h6 {[%emt 0:00:29]} 35. Kh2 {[%emt 0:01:33]} Qa5 {[%emt 0:01:15]} 36. Qb8+ {[%emt 0:02:20]} Kh7 {[%emt 0:01:51]} 37. Qe5 {[%emt 0:00:36]} Kg8 {[%emt 0:01:23]} 38. Re7 {[%emt 0:01:04]} Qd2 {[%emt 0:01:28]} 39. Qe6+ {[%emt 0:03:21]} Kh8 {[%emt 0:00:38]} 40. Qc8+ {[%emt 0:00:00]} Kh7 {[%emt 0:00:00]} 41. Qf5+ {[%emt 0:03:38]} Kg8 {[%emt 0:04:37]} 42. h4 {[%emt 0:02:46]} Qd4 {[%emt 0:03:08]} 43. Kg3 {[%emt 0:03:50]} Kf8 {[%emt 0:05:12]} 44. Re5 {[%emt 0:01:59]} Kg8 {[%emt 0:07:49]} 45. Qe6+ {[%emt 0:05:34]} Kh7 {[%emt 0:01:34]} 46. Qd6 {[%emt 0:03:44]} Qc3 {[%emt 0:00:58]} 47. Qe7 {[%emt 0:04:47]} Qc2 {[%emt 0:01:30]} 48. Re2 {[%emt 0:02:30]} Qg6+ {[%emt 0:00:26]} 49. Kh2 {[%emt 0:01:59]} Qh5 {[%emt 0:01:35]} 50. Kg1 {[%emt 0:03:05]} Qxh4 {[%emt 0:00:34]} 51. Qe5 {[%emt 0:00:16]} Qg5 {[%emt 0:01:32]} 52. Qxg5 {[%emt 0:00:31]} hxg5 {[%emt 0:01:35]} 53. Kf2 {[%emt 0:00:19]} g4 {[%emt 0:00:17]} 54. Kg3 {[%emt 0:04:58]} gxf3 {[%emt 0:00:05]} 55. gxf3 {[%emt 0:00:01]} Kg6 {[%emt 0:00:07]} 56. Kf4 {[%emt 0:01:28]} Nh5+ {[%emt 0:00:37]} 57. Ke3 {[%emt 0:01:00]} Kf5 {[%emt 0:00:08]} 58. Rh2 {[%emt 0:01:04]} Nf6 {[%emt 0:01:14]} 59. Rh8 {[%emt 0:01:03]} Nd5+ {[%emt 0:00:13]} 60. Kd4 {[%emt 0:00:26]} Nf6 {[%emt 0:01:45]} 61. Ke3 {[%emt 0:00:16]} g5 {[%emt 0:01:27]} 62. Rf8 {[%emt 0:00:52]} Ke5 {[%emt 0:00:06]} 63. Rf7 {[%emt 0:00:43]} Nd5+ {[%emt 0:00:47]} 64. Kf2 {[%emt 0:01:01]} Kd4 {[%emt 0:00:53]} 65. Kg3 {[%emt 0:01:01]} Nf4 {[%emt 0:00:41]} 66. Kg4 {[%emt 0:01:56]} Nd3 {[%emt 0:00:50]} 67. Kxg5 {[%emt 0:00:52]} Ne5 {[%emt 0:00:06]} 68. Rf4+ {[%emt 0:01:05]} Kc3 {[%emt 0:00:43]} 69. Kf6 {[%emt 0:00:48]} Nxf3 {[%emt 0:00:06]} 70. Ke7 {[%emt 0:02:28]} Kb2 {[%emt 0:00:18]} 71. Kd6 {[%emt 0:00:47]} Kxa2 {[%emt 0:00:26]} 72. Rb4 {[%emt 0:00:23]} Ka3 {[%emt 0:04:16]} 73. Rb6 {[%emt 0:01:02]} Nd4 {[%emt 0:00:15]} 74. Kc7 {[%emt 0:00:48]} Nxb3 {[%emt 0:00:22]} 75. Rxa6+ {[%emt 0:01:09]} bxa6 {[%emt 0:00:05]} 76. Kxc6 {[%emt 0:00:18]} Kb4 {[%emt 0:00:05]} 77. Kb6 {[%emt 0:00:04]} Nxc5 {[%emt 0:00:07]} 0-1

[Event "EYCC Open-U18 2019"]
[Site "Bratislava"]
[Date "2019.08.10"]
[Round "9.3"]
[White "Gumularz, Szymon"]
[Black "Murzin, Volodar"]
[Result "1/2-1/2"]
[ECO "B12"]
[WhiteElo "2502"]
[BlackElo "2429"]
[Annotator "ChessBase"]
[PlyCount "143"]
[EventDate "2019.08.02"]
[EventType "swiss"]
[EventCountry "SVK"]
[SourceTitle "playchess.com"]
[Source "ChessBase"]
[SourceQuality "1"]
[TimeControl "40/5400+30:1800+30"]

1. e4 {[%emt 0:00:00]} c6 {[%emt 0:02:15]} 2. d4 {[%emt 0:00:00]} d5 {[%emt 0:00:30]} 3. e5 {[%emt 0:00:00]} Bf5 {[%emt 0:00:06]} 4. Nf3 {[%emt 0:00:00]} e6 {[%emt 0:00:09]} 5. Be2 {[%emt 0:00:00]} Ne7 {[%emt 0:00:09]} 6. O-O {[%emt 0:03:12]} c5 {[%emt 0:01:30]} 7. Be3 {[%emt 0:03:12]} Nec6 {[%emt 0:01:24]} 8. dxc5 {[%emt 0:02:38]} Nd7 {[%emt 0:00:53]} 9. c4 {[%emt 0:00:04]} dxc4 {[%emt 0:03:18]} 10. Na3 {[%emt 0:00:16]} Bxc5 {[%emt 0:04:44]} 11. Bxc5 {[%emt 0:01:40]} Nxc5 {[%emt 0:00:09]} 12. Nxc4 {[%emt 0:00:02]} O-O {[%emt 0:00:37]} 13. Qc1 {[%emt 0:00:03]} Nd3 {[%emt 0:02:42]} 14. Qe3 {[%emt 0:07:43]} Qd5 {[%emt 0:03:55]} 15. Nd6 {[%emt 0:07:58]} Ndxe5 {[%emt 0:04:57]} 16. Rfd1 {[%emt 0:00:24]} Nxf3+ {[%emt 0:01:13]} 17. Bxf3 {[%emt 0:00:05]} Qe5 {[%emt 0:00:16]} 18. Nxb7 {[%emt 0:15:31]} Qxe3 {[%emt 0:02:18]} 19. fxe3 {[%emt 0:00:04]} Ne5 {[%emt 0:00:05]} 20. Rac1 {[%emt 0:07:35]} Rab8 {[%emt 0:19:00]} 21. Rc7 {[%emt 0:02:50]} Rfc8 {[%emt 0:08:24]} 22. Rdc1 {[%emt 0:02:52]} Rxc7 {[%emt 0:00:37]} 23. Rxc7 {[%emt 0:00:02]} g5 {[%emt 0:00:25]} 24. b3 {[%emt 0:05:50]} g4 {[%emt 0:12:24]} 25. Be2 {[%emt 0:01:29]} Be4 {[%emt 0:04:19]} 26. Nd6 {[%emt 0:10:41]} Bb1 {[%emt 0:00:54]} 27. Rxa7 {[%emt 0:02:31]} Rd8 {[%emt 0:00:22]} 28. Nc4 {[%emt 0:00:23]} Nxc4 {[%emt 0:00:37]} 29. bxc4 {[%emt 0:00:24]} Rd2 {[%emt 0:02:22]} 30. Bxg4 {[%emt 0:03:37]} Bxa2 {[%emt 0:00:28]} 31. Bh5 {[%emt 0:02:35]} Bxc4 {[%emt 0:00:13]} 32. Bxf7+ {[%emt 0:00:04]} Kf8 {[%emt 0:00:11]} 33. Bh5 {[%emt 0:01:19]} Kg8 {[%emt 0:00:44]} 34. Bf3 {[%emt 0:04:24]} h6 {[%emt 0:03:55]} 35. h4 {[%emt 0:02:21]} Rb2 {[%emt 0:04:35]} 36. Kh2 {[%emt 0:03:52]} Rb3 {[%emt 0:00:46]} 37. Rc7 {[%emt 0:00:05]} Rb4 {[%emt 0:01:52]} 38. Kg3 {[%emt 0:01:06]} Bd3 {[%emt 0:01:47]} 39. Rd7 {[%emt 0:09:53]} Bg6 {[%emt 0:02:45]} 40. Re7 {[%emt 0:00:00]} Bf5 {[%emt 0:00:00]} 41. Rd7 {[%emt 0:03:39]} Bg6 {[%emt 0:02:34]} 42. Bg4 {[%emt 0:12:12]} Bf7 {[%emt 0:03:50]} 43. Ra7 {[%emt 0:03:52]} Kf8 {[%emt 0:01:11]} 44. Bf3 {[%emt 0:03:11]} Rc4 {[%emt 0:02:12]} 45. e4 {[%emt 0:00:33]} Rc5 {[%emt 0:00:20]} 46. Kf4 {[%emt 0:00:15]} Bg6 {[%emt 0:01:19]} 47. Rd7 {[%emt 0:01:21]} Ra5 {[%emt 0:00:55]} 48. Rc7 {[%emt 0:00:24]} Rb5 {[%emt 0:00:58]} 49. Ke3 {[%emt 0:00:44]} Bf7 {[%emt 0:03:01]} 50. Kd4 {[%emt 0:00:31]} e5+ {[%emt 0:01:25]} 51. Ke3 {[%emt 0:00:37]} Ra5 {[%emt 0:03:37]} 52. Kd3 {[%emt 0:01:27]} Rb5 {[%emt 0:00:32]} 53. Kc3 {[%emt 0:00:07]} Rb3+ {[%emt 0:00:53]} 54. Kc2 {[%emt 0:00:10]} Rb5 {[%emt 0:00:13]} 55. Be2 {[%emt 0:00:16]} Rb4 {[%emt 0:00:29]} 56. Kd3 {[%emt 0:02:06]} Rb5 {[%emt 0:00:50]} 57. Ke3 {[%emt 0:00:35]} Ra5 {[%emt 0:01:28]} 58. Bc4 {[%emt 0:04:35]} Ra3+ {[%emt 0:00:54]} 59. Kf2 {[%emt 0:00:05]} Bg6 {[%emt 0:00:38]} 60. Bd5 {[%emt 0:00:55]} Ra4 {[%emt 0:00:52]} 61. Kf3 {[%emt 0:00:14]} Ra3+ {[%emt 0:02:02]} 62. Kf2 {[%emt 0:00:38]} Ra4 {[%emt 0:00:16]} 63. Kf3 {[%emt 0:00:03]} Ra3+ {[%emt 0:00:07]} 64. Kg4 {[%emt 0:01:50]} Ra4 {[%emt 0:00:13]} 65. h5 {[%emt 0:01:20]} Bxe4 {[%emt 0:00:33]} 66. Bxe4 {[%emt 0:00:16]} Rxe4+ {[%emt 0:00:10]} 67. Kf5 {[%emt 0:00:02]} Rf4+ {[%emt 0:00:17]} 68. Kxe5 {[%emt 0:00:46]} Rg4 {[%emt 0:00:23]} 69. Kf6 {[%emt 0:00:30]} Kg8 {[%emt 0:00:07]} 70. Rc8+ {[%emt 0:00:41]} Kh7 71. Rc7+ {[%emt 0:00:04]} Kg8 {[%emt 0:00:14]} 72. Rc8+ {[%emt 0:00:35]} 1/2-1/2

[Event "EYCC Open-U18 2019"]
[Site "Bratislava"]
[Date "2019.08.10"]
[Round "9.4"]
[White "Erenberg, Ariel"]
[Black "Bronstein, Or"]
[Result "1/2-1/2"]
[ECO "A05"]
[WhiteElo "2442"]
[BlackElo "2378"]
[Annotator "NA"]
[PlyCount "58"]
[EventDate "2019.08.02"]
[EventType "swiss"]
[EventCountry "SVK"]
[SourceTitle "playchess.com"]
[Source "ChessBase"]
[SourceQuality "1"]
[TimeControl "40/5400+30:1800+30"]

1. Nf3 {[%emt 0:00:00]} Nf6 {[%emt 0:00:00]} 2. e3 {[%emt 0:00:14]} g6 {[%emt 0:09:06]} 3. b4 {[%emt 0:00:06]} Bg7 {[%emt 0:00:14]} 4. Bb2 {[%emt 0:00:08]} O-O {[%emt 0:00:10]} 5. Be2 {[%emt 0:00:57]} d6 {[%emt 0:00:41]} 6. O-O {[%emt 0:00:30]} e5 {[%emt 0:00:37]} 7. d3 {[%emt 0:00:13]} Nbd7 {[%emt 0:03:46]} 8. c4 {[%emt 0:04:37]} Qe7 {[%emt 0:02:43]} 9. Nbd2 {[%emt 0:00:31]} Re8 {[%emt 0:02:19]} 10. Qc2 {[%emt 0:00:25]} c5 {[%emt 0:10:31]} 11. b5 {[%emt 0:14:31]} b6 {[%emt 0:04:45]} 12. a4 {[%emt 0:00:16]} a5 {[%emt 0:00:23]} 13. bxa6 {[%emt 0:00:19]} Rxa6 {[%emt 0:00:15]} 14. Nb3 {[%emt 0:14:27]} Bb7 {[%emt 0:03:54]} 15. a5 {[%emt 0:02:04]} e4 {[%emt 0:05:46]} 16. dxe4 {[%emt 0:00:17]} Nxe4 {[%emt 0:01:51]} 17. Bxg7 {[%emt 0:03:26]} Kxg7 {[%emt 0:01:22]} 18. axb6 {[%emt 0:00:25]} Rxb6 {[%emt 0:03:14]} 19. Nbd2 {[%emt 0:18:46]} Qf6 {[%emt 0:03:46]} 20. Nxe4 {[%emt 0:04:38]} Bxe4 {[%emt 0:00:39]} 21. Qd1 {[%emt 0:00:48]} Reb8 {[%emt 0:02:44]} 22. Nd2 {[%emt 0:00:24]} Bc6 {[%emt 0:01:18]} 23. Bf3 {[%emt 0:00:29]} Bxf3 {[%emt 0:00:45]} 24. Nxf3 {[%emt 0:00:41]} Ne5 {[%emt 0:02:12]} 25. Nxe5 {[%emt 0:01:36]} Qxe5 {[%emt 0:00:02]} 26. h3 {[%emt 0:04:23]} Rb4 {[%emt 0:03:20]} 27. Ra6 {[%emt 0:01:09]} R8b6 {[%emt 0:01:26]} 28. Rxb6 {[%emt 0:00:46]} Rxb6 {[%emt 0:00:02]} 29. Qd3 {[%emt 0:02:46]} Ra6 {[%emt 0:03:09]} 1/2-1/2

[Event "EYCC Open-U18 2019"]
[Site "Bratislava"]
[Date "2019.08.10"]
[Round "9.5"]
[White "Zarubitski, Viachaslau"]
[Black "Vrolijk, Liam"]
[Result "0-1"]
[ECO "C50"]
[WhiteElo "2424"]
[BlackElo "2478"]
[Annotator "ChessBase"]
[PlyCount "50"]
[EventDate "2019.08.02"]
[EventType "swiss"]
[EventCountry "SVK"]
[SourceTitle "playchess.com"]
[Source "ChessBase"]
[SourceQuality "1"]
[TimeControl "40/5400+30:1800+30"]

1. e4 {[%emt 0:00:00]} e5 {[%emt 0:01:25]} 2. Nf3 {[%emt 0:00:18]} Nc6 {[%emt 0:00:07]} 3. Bc4 {[%emt 0:00:10]} Bc5 {[%emt 0:00:43]} 4. d3 {[%emt 0:00:10]} Nf6 {[%emt 0:00:28]} 5. O-O {[%emt 0:00:28]} O-O {[%emt 0:00:44]} 6. Re1 {[%emt 0:00:26]} d6 {[%emt 0:02:05]} 7. c3 {[%emt 0:00:29]} a6 {[%emt 0:04:26]} 8. Bb3 {[%emt 0:02:24]} Ba7 {[%emt 0:01:09]} 9. Nbd2 {[%emt 0:00:41]} Ng4 {[%emt 0:07:54]} 10. Re2 {[%emt 0:02:43]} Kh8 {[%emt 0:00:23]} 11. h3 {[%emt 0:35:00]} f5 {[%emt 0:03:59]} 12. hxg4 {[%emt 0:14:17]} fxg4 {[%emt 0:00:10]} 13. Nh2 {[%emt 0:00:01]} Qh4 {[%emt 0:15:13]} 14. d4 {[%emt 0:23:55]} exd4 {[%emt 0:02:20]} 15. g3 {[%emt 0:00:47]} Qh3 {[%emt 0:04:13]} 16. Ndf1 {[%emt 0:01:01]} Bd7 {[%emt 0:10:39]} 17. a4 {[%emt 0:10:21]} Rae8 {[%emt 0:07:01]} 18. Bd5 {[%emt 0:00:00]} Ne5 {[%emt 0:01:45]} 19. cxd4 {[%emt 0:00:22]} Nf3+ {[%emt 0:00:27]} 20. Kh1 {[%emt 0:00:01]} Bxd4 {[%emt 0:03:39]} 21. Bf4 {[%emt 0:04:43]} Rf6 {[%emt 0:05:49]} 22. Ra3 {[%emt 0:00:36]} Re5 {[%emt 0:02:58]} 23. Re1 {[%emt 0:01:26]} Rxf4 {[%emt 0:01:02]} 24. gxf4 {[%emt 0:00:09]} Rh5 {[%emt 0:00:12]} 25. Rxf3 {[%emt 0:01:29]} gxf3 {[%emt 0:00:07]} 0-1

[Event "EYCC Open-U18 2019"]
[Site "Bratislava"]
[Date "2019.08.10"]
[Round "9.7"]
[White "Travadon, Loic"]
[Black "Gaifullin, Artur"]
[Result "1/2-1/2"]
[ECO "A05"]
[WhiteElo "2403"]
[BlackElo "2453"]
[Annotator "ChessBase"]
[PlyCount "113"]
[EventDate "2019.08.02"]
[EventType "swiss"]
[EventCountry "SVK"]
[SourceTitle "playchess.com"]
[Source "ChessBase"]
[SourceQuality "1"]
[TimeControl "40/5400+30:1800+30"]

1. Nf3 {[%emt 0:00:00]} Nf6 {[%emt 0:03:22]} 2. c4 {[%emt 0:00:00]} e6 {[%emt 0:00:05]} 3. Nc3 {[%emt 0:00:00]} d5 {[%emt 0:00:34]} 4. e3 {[%emt 0:00:00]} Be7 {[%emt 0:00:15]} 5. b3 {[%emt 0:00:00]} O-O {[%emt 0:00:36]} 6. Bb2 {[%emt 0:00:00]} dxc4 {[%emt 0:00:14]} 7. Bxc4 {[%emt 0:00:10]} c5 {[%emt 0:00:05]} 8. O-O {[%emt 0:00:22]} Nc6 {[%emt 0:00:31]} 9. d4 {[%emt 0:07:25]} cxd4 {[%emt 0:00:57]} 10. Nxd4 {[%emt 0:01:07]} Nxd4 {[%emt 0:01:40]} 11. exd4 {[%emt 0:00:05]} Qa5 {[%emt 0:03:43]} 12. Qf3 {[%emt 0:02:28]} Rd8 {[%emt 0:00:47]} 13. Rad1 {[%emt 0:01:52]} Rb8 {[%emt 0:00:16]} 14. a4 {[%emt 0:05:27]} b6 {[%emt 0:02:48]} 15. Rfe1 {[%emt 0:00:43]} Bb7 {[%emt 0:00:55]} 16. Qh3 {[%emt 0:20:37]} Nd5 {[%emt 0:03:38]} 17. Nxd5 {[%emt 0:01:25]} Bxd5 {[%emt 0:00:16]} 18. Bc3 {[%emt 0:00:20]} Bb4 {[%emt 0:00:06]} 19. Bxb4 {[%emt 0:00:07]} Qxb4 {[%emt 0:00:09]} 20. Bxd5 {[%emt 0:00:15]} exd5 {[%emt 0:06:59]} 21. Qe3 {[%emt 0:04:59]} Kf8 {[%emt 0:05:47]} 22. Qd3 {[%emt 0:00:52]} g6 {[%emt 0:01:54]} 23. Qb5 {[%emt 0:02:27]} Qxb5 {[%emt 0:02:00]} 24. axb5 {[%emt 0:00:02]} Rbc8 {[%emt 0:00:04]} 25. Rc1 {[%emt 0:00:34]} Kg7 {[%emt 0:00:18]} 26. g3 {[%emt 0:00:57]} Re8 {[%emt 0:00:39]} 27. Ra1 {[%emt 0:01:51]} Rxe1+ {[%emt 0:00:19]} 28. Rxe1 {[%emt 0:00:02]} Rc3 {[%emt 0:00:19]} 29. Re5 {[%emt 0:00:12]} Rxb3 {[%emt 0:00:30]} 30. Rxd5 {[%emt 0:00:01]} Kf6 {[%emt 0:00:17]} 31. Rd7 {[%emt 0:00:43]} Ra3 {[%emt 0:00:10]} 32. Kg2 {[%emt 0:02:02]} Ra4 {[%emt 0:03:05]} 33. d5 {[%emt 0:04:03]} Ra5 {[%emt 0:03:54]} 34. d6 {[%emt 0:00:24]} Ke6 {[%emt 0:01:16]} 35. Re7+ {[%emt 0:00:10]} Kxd6 {[%emt 0:00:17]} 36. Rxf7 {[%emt 0:00:07]} Kc5 {[%emt 0:00:56]} 37. Rxh7 {[%emt 0:00:11]} Kxb5 {[%emt 0:00:04]} 38. Rg7 {[%emt 0:00:12]} Ka4 {[%emt 0:00:43]} 39. Rxg6 {[%emt 0:08:54]} b5 {[%emt 0:00:05]} 40. Rg7 {[%emt 0:00:00]} b4 {[%emt 0:00:00]} 41. Rb7 {[%emt 0:04:19]} b3 {[%emt 0:00:22]} 42. h4 {[%emt 0:01:08]} a6 {[%emt 0:04:49]} 43. Rb6 {[%emt 0:00:07]} Ka3 {[%emt 0:01:13]} 44. h5 {[%emt 0:00:10]} Rxh5 {[%emt 0:01:00]} 45. Rxa6+ {[%emt 0:00:01]} Kb4 {[%emt 0:00:01]} 46. Ra1 {[%emt 0:01:37]} b2 {[%emt 0:00:09]} 47. Rb1 {[%emt 0:00:35]} Kc3 {[%emt 0:00:06]} 48. f4 {[%emt 0:02:33]} Ra5 {[%emt 0:06:33]} 49. g4 {[%emt 0:03:13]} Ra1 {[%emt 0:00:50]} 50. Rxb2 {[%emt 0:00:01]} Kxb2 {[%emt 0:00:02]} 51. Kf3 {[%emt 0:00:59]} Kc3 {[%emt 0:04:07]} 52. Ke4 {[%emt 0:00:06]} Ra4+ {[%emt 0:01:38]} 53. Ke5 {[%emt 0:01:29]} Ra5+ {[%emt 0:04:44]} 54. Kf6 {[%emt 0:00:32]} Kd4 {[%emt 0:01:07]} 55. g5 {[%emt 0:00:07]} Ke4 {[%emt 0:00:42]} 56. g6 {[%emt 0:00:05]} Ra6+ {[%emt 0:00:02]} 57. Kg5 {[%emt 0:00:44]} 1/2-1/2

[Event "EYCC Open-U18 2019"]
[Site "Bratislava"]
[Date "2019.08.10"]
[Round "9.9"]
[White "Pantzar, Milton"]
[Black "Hakobyan, Aram"]
[Result "1/2-1/2"]
[ECO "E70"]
[WhiteElo "2357"]
[BlackElo "2568"]
[Annotator "ChessBase"]
[PlyCount "56"]
[EventDate "2019.08.02"]
[EventType "swiss"]
[EventCountry "SVK"]
[SourceTitle "playchess.com"]
[Source "ChessBase"]
[SourceQuality "1"]
[TimeControl "40/5400+30:1800+30"]

1. d4 {[%emt 0:00:00]} g6 {[%emt 0:00:00]} 2. c4 {[%emt 0:00:53]} Bg7 {[%emt 0:00:00]} 3. e4 {[%emt 0:00:30]} d6 {[%emt 0:00:00]} 4. Nc3 {[%emt 0:01:11]} Nf6 {[%emt 0:01:26]} 5. Nge2 {[%emt 0:00:37]} O-O {[%emt 0:01:33]} 6. Ng3 {[%emt 0:00:08]} c5 {[%emt 0:00:06]} 7. d5 {[%emt 0:00:35]} e6 {[%emt 0:00:36]} 8. Be2 {[%emt 0:00:34]} exd5 {[%emt 0:02:01]} 9. cxd5 {[%emt 0:00:06]} Nbd7 {[%emt 0:01:11]} 10. O-O {[%emt 0:01:34]} a6 {[%emt 0:01:06]} 11. a4 {[%emt 0:00:12]} Re8 {[%emt 0:00:02]} 12. Bg5 {[%emt 0:01:43]} h6 {[%emt 0:04:14]} 13. Be3 {[%emt 0:01:41]} h5 {[%emt 0:09:43]} 14. Bg5 {[%emt 0:00:59]} Rb8 {[%emt 0:10:23]} 15. Qd2 {[%emt 0:03:05]} Qa5 {[%emt 0:01:28]} 16. f4 {[%emt 0:04:54]} Qb4 {[%emt 0:07:41]} 17. Kh1 {[%emt 0:08:48]} Nh7 {[%emt 0:02:31]} 18. Bh4 {[%emt 0:01:14]} c4 {[%emt 0:05:02]} 19. e5 {[%emt 0:07:58]} Nc5 {[%emt 0:04:02]} 20. Rad1 {[%emt 0:05:42]} dxe5 {[%emt 0:17:08]} 21. f5 {[%emt 0:02:41]} Nd3 {[%emt 0:01:11]} 22. fxg6 {[%emt 0:18:57]} fxg6 {[%emt 0:00:16]} 23. Bxd3 {[%emt 0:00:24]} cxd3 {[%emt 0:00:12]} 24. Qxd3 {[%emt 0:00:28]} Qg4 {[%emt 0:09:40]} 25. d6 {[%emt 0:07:42]} Bd7 {[%emt 0:04:01]} 26. Nd5 {[%emt 0:06:09]} Re6 {[%emt 0:07:21]} 27. Qe4 {[%emt 0:10:52]} g5 {[%emt 0:04:45]} 28. Qg6 {[%emt 0:09:10]} Rxg6 {[%emt 0:05:49]} 1/2-1/2